bitfinex-derivatives/quotes_ETHF0:USTF0_20250308
["timestamp","ask_amount","ask_price","bid_price","bid_amount"]
[1741411168039,2.81559,2145.9,2145.7,0.6253]
[1741411169142,1.8834,2145.9,2145.7,0.6253]
[1741411169445,2.81557,2145.9,2145.7,0.6253]
[1741411170341,1.8834,2145.9,2145.7,0.6253]
[1741411170535,1.8834,2145.9,2145.7,1.55755]
[1741411170740,2.81558,2145.9,2145.7,0.6253]
[1741411171042,1.8834,2145.9,2145.7,0.6253]
[1741411171347,2.81557,2145.9,2145.7,0.6253]
[1741411172947,1.8834,2145.9,2145.7,0.6253]
[1741411173446,2.81558,2145.9,2145.7,0.6253]
[1741411173642,1.8834,2145.9,2145.7,0.01]
[1741411173847,0.93222,2145.8,2145.7,0.01]
[1741411174039,1.8834,2145.9,2145.7,0.01]
[1741411174239,1.8834,2145.9,2145.7,0.94226]
[1741411174439,1.8834,2145.9,2145.7,0.01]
[1741411174640,2.81558,2145.9,2145.7,0.01]
[1741411175250,1.8834,2145.9,2145.7,0.01]
[1741411175549,1.8834,2145.9,2145.7,0.94225]
[1741411175742,2.81559,2145.9,2145.7,0.01]
[1741411175937,1.8834,2145.9,2145.7,0.01]
[1741411176140,0.93222,2145.8,2145.7,0.01]
[1741411176638,3.2078,2145.8,2145.2,0.93245]
[1741411176841,0.93236,2145.5,2145.2,1.34245]
[1741411177047,1.9256,2145.4,2145.2,1.34245]
[1741411177548,2.85801,2145.4,2145.2,0.41]
[1741411177843,1.9256,2145.4,2145.2,1.34248]
[1741411178251,1.9256,2145.4,2145.2,0.41]
[1741411178550,2.858,2145.4,2145.2,0.41]
[1741411179551,1.9256,2145.4,2145.2,0.41]
[1741411180346,1.2783,2145.4,2145.2,1.34245]
[1741411181451,1.9137,2145.4,2145.3,0.93243]
[1741411181651,1.9137,2145.4,2145.3,1.14243]
[1741411181854,6.17904,2145.8,2145.5,0.93233]
[1741411182047,1.8465,2145.9,2145.6,0.6263]
[1741411182353,1.8465,2145.9,2145.7,0.93226]
[1741411182568,1.8465,2145.9,2145.7,1.07226]
[1741411183657,0.93222,2145.8,2145.7,0.14]
[1741411183954,2.77871,2145.9,2145.7,0.14]
[1741411184553,0.93222,2145.8,2145.7,0.14]
[1741411185753,0.9323,2145.6,2145.3,6.17921]
[1741411186056,1.8465,2145.9,2145.3,6.17921]
[1741411186057,0.6396,2145.5,2145.3,6.51921]
[1741411186553,0.6396,2145.5,2145.4,0.93239]
[1741411186769,0.6396,2145.5,2145.4,1.17239]
[1741411186957,0.6396,2145.5,2145.4,0.24]
[1741411187158,0.93227,2145.7,2145.4,1.17239]
[1741411188453,0.6425,2145.8,2145.4,0.24]
[1741411188650,0.6425,2145.8,2145.5,0.93233]
[1741411188849,0.6425,2145.8,2145.5,0.25]
[1741411189155,0.9323,2145.7,2145.5,0.25]
[1741411189352,0.9323,2145.6,2145.5,0.25]
[1741411190360,3.8503,2145.8,2145.5,0.25]
[1741411190553,0.9323,2145.6,2145.5,0.25]
[1741411195194,2.33066,2145.7,2145.0,3.2078]
[1741411195457,0.93252,2145.1,2145.0,0.37]
[1741411199759,2.22602,2145.1,2145.0,0.37]
[1741411203964,5.43382,2145.1,2145.0,0.37]
[1741411204162,4.5013,2145.1,2144.7,1.28109643]
[1741411204370,0.93263,2144.9,2144.7,1.96109643]
[1741411204665,0.6373,2144.8,2144.7,1.96109643]
[1741411204859,0.6373,2144.8,2144.7,2.89378643]
[1741411205374,0.6373,2144.8,2144.7,1.96109643]
[1741411205567,0.6373,2144.8,2144.7,2.89378643]
[1741411206370,0.6373,2144.8,2144.7,1.96109643]
[1741411207375,1.2935,2145.1,2144.7,1.96109643]
[1741411207570,1.55976,2145.0,2144.7,2.89376643]
[1741411208976,0.93262,2144.9,2144.7,1.96109643]
[1741411210083,1.55979,2145.0,2144.7,2.89377643]
[1741411210279,0.6272,2145.0,2144.7,1.96109643]
[1741411210480,1.5598,2145.0,2144.7,2.89378643]
[1741411210779,0.93262,2144.9,2144.7,1.96109643]
[1741411211173,1.55979,2145.0,2144.7,2.89378643]
[1741411213075,0.37369265,2145.3,2144.8,3.2078]
[1741411213281,0.37369265,2145.3,2144.9,0.93259]
[1741411213282,0.93248,2145.2,2144.9,0.93259]
[1741411213470,0.93248,2145.2,2144.9,1.28259]
[1741411213781,0.93248,2145.2,2145.0,0.6193]
[1741411213976,0.93248,2145.2,2145.0,0.6793]
[1741411214784,0.93249,2145.2,2145.0,0.6793]
[1741411215783,0.93252,2145.1,2145.0,0.6793]
[1741411215975,1.57232,2145.1,2145.0,0.6793]
[1741411218578,1.57232,2145.1,2145.0,0.06]
[1741411221585,4.78012,2145.1,2145.0,0.06]
[1741411221895,3.8476,2145.1,2144.7,0.65279643]
[1741411222081,0.93265,2144.8,2144.7,1.39279643]
[1741411222984,0.663,2144.9,2144.7,1.39279643]
[1741411222985,1.59564,2144.9,2144.7,2.32548643]
[1741411223185,0.663,2144.9,2144.7,1.39279643]
[1741411223385,0.93265,2144.8,2144.7,1.39279643]
[1741411225482,1.59563,2144.9,2144.7,1.39279643]
[1741411225685,0.663,2144.9,2144.7,2.32547643]
[1741411225991,1.59562,2144.9,2144.7,1.39279643]
[1741411228191,0.663,2144.9,2144.7,1.39279643]
[1741411228392,0.93265,2144.8,2144.7,1.39279643]
[1741411228689,0.663,2144.9,2144.7,1.39279643]
[1741411228988,0.6284,2145.0,2144.8,0.93265]
[1741411229186,1.57232,2145.1,2144.8,1.56265]
[1741411229393,1.57232,2145.1,2144.9,0.612]
[1741411229593,1.57232,2145.1,2144.9,0.952]
[1741411230585,0.6398,2145.1,2144.9,0.952]
[1741411230787,2.983,2145.5,2145.2,0.93248]
[1741411230992,4.56377,2145.5,2145.3,1.2263]
[1741411231193,3.6314,2145.5,2145.3,1.3363]
[1741411231397,3.6314,2145.5,2145.3,2.26872]
[1741411231598,4.56377,2145.5,2145.3,1.3363]
[1741411231790,3.6314,2145.5,2145.3,1.3363]
[1741411231991,5.20207,2145.5,2145.3,1.3363]
[1741411232685,4.2697,2145.5,2145.3,1.3363]
[1741411232893,4.2697,2145.5,2145.3,2.26873]
[1741411233494,4.2697,2145.5,2145.3,1.3363]
[1741411233894,4.2697,2145.5,2145.3,2.26872]
[1741411234085,0.93239,2145.4,2145.3,0.11]
[1741411234286,0.93248,2145.2,2145.0,1.2732]
[1741411234597,0.93248,2145.2,2145.0,1.4632]
[1741411234892,1.3231,2145.1,2145.0,1.4632]
[1741411235097,2.92092,2145.1,2145.0,0.19]
[1741411239593,0.93265,2144.8,2144.7,3.83329643]
[1741411239799,0.93265,2144.8,2144.7,4.40329643]
[1741411239999,0.93265,2144.8,2144.7,3.78479643]
[1741411240796,5.2458,2145.0,2144.2,3.841]
[1741411241001,3.2078,2144.4,2144.2,1.4032]
[1741411241214,1.58057,2144.3,2144.2,0.77]
[1741411241393,2.18527,2144.3,2144.2,0.77]
[1741411241901,2.18527,2144.3,2143.9,4.14081]
[1741411241902,0.93297,2144.1,2143.9,4.14083]
[1741411242101,0.93297,2144.1,2144.0,0.00699643]
[1741411242301,0.93297,2144.1,2144.0,0.52699643]
[1741411243098,0.6453,2144.2,2144.0,0.52699643]
[1741411243405,1.57823,2144.2,2144.0,0.52699643]
[1741411243606,0.6453,2144.2,2144.0,0.52699643]
[1741411244001,2.18529,2144.3,2144.0,1.45997643]
[1741411244206,1.2524,2144.3,2144.0,1.45995643]
[1741411244405,1.2524,2144.3,2144.1,0.6165]
[1741411244604,2.18528,2144.3,2144.1,0.8065]
[1741411246005,1.2524,2144.3,2144.1,0.8065]
[1741411246198,2.18531,2144.3,2144.1,0.8065]
[1741411246398,0.93291,2144.2,2144.1,0.8065]
[1741411247300,2.18529,2144.3,2144.1,0.8065]
[1741411247603,0.6502,2144.4,2144.1,0.8065]
[1741411247804,0.6502,2144.4,2144.1,1.73943]
[1741411248199,0.6502,2144.4,2144.1,0.8065]
[1741411248402,0.00699643,2144.5,2144.3,0.93284]
[1741411248698,0.00699643,2144.5,2144.3,0.08]
[1741411248899,0.00699643,2144.5,2144.2,3.2078]
[1741411249104,0.93291,2144.2,2144.1,1.2715]
[1741411249304,0.93291,2144.2,2144.1,0.9365]
[1741411249717,0.93291,2144.2,2144.1,0.32]
[1741411250099,1.53811,2144.2,2144.1,0.32]
[1741411250695,3.8435,2144.4,2144.1,0.32]
[1741411250902,0.93288,2144.3,2144.1,0.975]
[1741411251109,3.8435,2144.4,2144.1,0.975]
[1741411251304,0.93291,2144.2,2144.1,0.975]
[1741411251606,0.93291,2144.2,2144.1,0.32]
[1741411262316,0.00699643,2144.5,2144.4,0.93282]
[1741411262617,0.9327,2144.7,2144.4,0.25]
[1741411262913,0.37792179,2145.0,2144.4,1.1828]
[1741411262914,0.6379,2145.0,2144.4,1.1828]
[1741411263109,0.6379,2145.0,2144.4,0.25]
[1741411263312,0.93261,2144.9,2144.5,1.57477]
[1741411263509,0.00699643,2144.9,2144.5,0.872]
[1741411263704,6.5249,2144.8,2144.2,4.447]
[1741411263907,0.93283,2144.4,2144.2,4.637]
[1741411264314,6.5249,2144.8,2144.2,4.637]
[1741411264315,0.9328,2144.5,2144.2,4.637]
[1741411264507,0.93284,2144.4,2144.2,4.637]
[1741411264712,0.93281,2144.5,2144.2,4.637]
[1741411264910,0.6267,2144.4,2144.2,4.637]
[1741411265417,0.93287,2144.3,2144.2,3.3978]
[1741411265609,1.58527,2144.3,2144.2,3.3978]
[1741411266012,1.2646,2144.4,2144.2,4.33071]
[1741411266209,0.6267,2144.4,2144.2,3.3978]
[1741411266411,1.55952,2144.4,2144.3,1.2796]
[1741411266617,1.55952,2144.4,2144.3,0.7417]
[1741411268015,1.55952,2144.4,2144.3,0.08]
[1741411269518,1.55952,2144.4,2144.0,0.66869643]
[1741411269519,0.93291,2144.2,2144.0,0.66869643]
[1741411269727,0.93291,2144.2,2144.0,1.03869643]
[1741411270011,0.93293,2144.2,2144.0,1.03869643]
[1741411270616,1.2228,2144.3,2144.0,1.03869643]
[1741411270818,2.1557,2144.3,2144.0,1.03869643]
[1741411271011,0.93292,2144.2,2144.0,1.03869643]
[1741411271517,3.59754,2144.4,2144.1,0.93295]
[1741411271719,3.59754,2144.4,2144.1,0.7099]
[1741411272218,0.93287,2144.3,2144.1,0.7099]
[1741411272813,0.93291,2144.2,2144.1,0.09]
[1741411273522,1.54291,2144.2,2144.1,0.09]
[1741411273814,1.59508,2144.3,2144.1,0.09]
[1741411274015,0.93291,2144.2,2144.1,0.09]
[1741411274534,0.61,2144.3,2144.1,0.09]
[1741411274718,2.6647,2144.4,2144.1,0.09]
[1741411274922,0.93288,2144.3,2144.1,0.09]
[1741411275124,0.93291,2144.2,2144.1,0.09]
[1741411275519,0.93291,2144.3,2144.1,0.09]
[1741411275920,3.2747,2144.4,2144.1,0.09]
[1741411276217,2.6647,2144.4,2144.2,0.6317]
[1741411276425,2.6647,2144.4,2144.3,0.6249]
[1741411276725,0.6267,2144.4,2144.3,0.6549]
[1741411277222,1.55952,2144.4,2144.3,0.03]
[1741411278324,0.6267,2144.4,2144.2,0.6317]
[1741411278515,1.54217,2144.3,2144.2,0.07]
[1741411278714,0.93294,2144.2,2144.0,1.27939643]
[1741411278915,0.6267,2144.4,2144.0,1.58939643]
[1741411279126,0.93294,2144.2,2144.0,1.58939643]
[1741411279428,0.93296,2144.1,2144.0,1.58939643]
[1741411279721,0.93296,2144.1,2144.0,0.96449643]
[1741411280516,3.2078,2144.2,2143.8,0.6093]
[1741411280716,0.93304,2143.9,2143.8,0.7393]
[1741411280919,0.93304,2143.9,2143.8,0.13]
[1741411281127,1.31252398,2143.9,2143.8,0.13]
[1741411281515,4.52032398,2143.9,2143.8,0.13]
[1741411281720,0.93313,2143.7,2143.6,0.00699643]
[1741411281920,0.93313,2143.7,2143.6,0.21699643]
[1741411282121,2.97113,2143.7,2143.6,0.00699643]
[1741411282627,2.97113,2143.7,2143.2,0.6622]
[1741411282628,2.038,2143.7,2143.2,0.6622]
[1741411282822,2.038,2143.7,2143.2,2.0122]
[1741411283128,0.93329,2143.4,2143.2,2.0122]
[1741411283422,0.6279,2143.6,2143.2,2.0122]
[1741411283621,0.93319,2143.6,2143.3,1.55629]
[1741411283827,0.00699643,2143.6,2143.4,0.93325]
[1741411284027,0.00699643,2143.6,2143.4,1.15324]
[1741411284223,0.94016643,2143.6,2143.5,0.6051]
[1741411284420,0.00699643,2143.6,2143.5,0.7151]
[1741411285423,0.00699643,2143.6,2143.5,1.64832]
[1741411285630,0.00699643,2143.6,2143.5,0.7151]
[1741411287727,0.94016643,2143.6,2143.5,0.7151]
[1741411287934,0.94016643,2143.6,2143.5,0.11]
[1741411289929,0.93326,2143.4,2143.3,3.8747]
[1741411290231,0.93326,2143.4,2143.3,4.6647]
[1741411292431,0.93326,2143.4,2143.3,1.4569]
[1741411292632,0.93323,2143.5,2143.3,1.4569]
[1741411292836,0.93326,2143.4,2143.3,1.4569]
[1741411293529,0.93326,2143.4,2143.3,0.79]
[1741411294644,3.21479643,2143.6,2143.3,0.79]
[1741411294832,0.93322,2143.5,2143.4,0.6043]
[1741411299048,0.9333,2143.3,2143.2,0.63689643]
[1741411299241,0.9333,2143.3,2143.2,2.74099643]
[1741411299742,0.9333,2143.3,2143.2,2.11109643]
[1741411302541,3.21479643,2143.6,2143.2,2.11109643]
[1741411302746,0.93329,2143.4,2143.2,2.11109643]
[1741411303053,0.9333,2143.3,2143.2,2.11109643]
[1741411303254,0.93329,2143.4,2143.2,2.11109643]
[1741411303451,0.9333,2143.3,2143.2,2.11109643]
[1741411304148,0.93328,2143.4,2143.2,2.11109643]
[1741411306857,0.9333,2143.3,2143.2,2.11109643]
[1741411307156,3.21479643,2143.6,2143.2,2.11109643]
[1741411307457,0.9333,2143.3,2143.2,2.11109643]
[1741411307847,3.21479643,2143.6,2143.2,2.11109643]
[1741411308456,0.9333,2143.3,2143.2,2.11109643]
[1741411309158,0.93329,2143.4,2143.2,2.11109643]
[1741411309953,0.93327,2143.4,2143.2,3.04442643]
[1741411310253,1.58425,2143.5,2143.2,3.04442643]
[1741411311659,0.00699643,2143.6,2143.2,2.11109643]
[1741411311863,0.00699643,2143.6,2143.3,0.9333]
[1741411312160,0.94018643,2143.6,2143.3,1.7533]
[1741411312363,0.94018643,2143.6,2143.4,0.6449]
[1741411312556,0.94018643,2143.6,2143.4,0.8049]
[1741411312964,0.00699643,2143.6,2143.4,0.8049]
[1741411313166,0.93322,2143.5,2143.4,0.16]
[1741411316667,0.00699643,2143.6,2143.4,0.16]
[1741411317355,0.93322,2143.5,2143.4,0.16]
[1741411320969,0.9333,2143.3,2143.2,0.00699643]
[1741411321171,0.9333,2143.3,2143.2,0.28699643]
[1741411321669,1.554,2143.3,2143.2,0.28699643]
[1741411325460,0.6207,2143.3,2143.2,1.22034643]
[1741411325665,0.93324,2143.5,2143.3,0.93329]
[1741411325874,0.93324,2143.5,2143.3,1.02329]
[1741411326067,0.93324,2143.5,2143.3,0.09]
[1741411326663,1.27079643,2143.6,2143.3,0.09]
[1741411326975,0.93324,2143.5,2143.3,0.09]
[1741411327272,1.27079643,2143.6,2143.3,0.09]
[1741411327466,0.63229643,2143.6,2143.4,0.93326]
[1741411327674,0.63229643,2143.6,2143.4,1.00326]
[1741411327867,0.63229643,2143.6,2143.5,0.6698]
[1741411328069,0.63229643,2143.6,2143.5,0.8098]
[1741411328873,0.63229643,2143.6,2143.5,1.74302]
[1741411329172,0.00699643,2143.6,2143.5,1.74302]
[1741411329773,0.00699643,2143.6,2143.5,0.8098]
[1741411330666,0.00699643,2143.6,2143.5,1.74302]
[1741411332876,0.00699643,2143.6,2143.5,0.14]
[1741411333068,0.94016643,2143.6,2143.5,0.14]
[1741411333469,2.20676643,2143.6,2143.5,0.14]
[1741411335970,1.27359643,2143.6,2143.5,1.07322]
[1741411336273,2.20676643,2143.6,2143.5,0.14]
[1741411336575,0.00699643,2143.6,2143.5,0.14]
[1741411336778,0.94016643,2143.6,2143.5,0.14]
[1741411338272,0.00699643,2143.6,2143.5,0.14]
[1741411338577,0.00699643,2143.6,2143.5,1.07322]
[1741411338779,0.94016643,2143.6,2143.5,0.14]
[1741411350789,0.00699643,2143.6,2143.5,1.07322]
[1741411350983,0.00699643,2143.6,2143.5,1.70192]
[1741411351688,0.94016643,2143.6,2143.5,0.7687]
[1741411351888,0.00699643,2143.6,2143.5,0.7687]
[1741411352482,0.94016643,2143.6,2143.5,0.7687]
[1741411355591,0.00699643,2143.6,2143.5,0.7687]
[1741411355987,0.37948398,2143.9,2143.5,5.70192]
[1741411356182,0.6205,2144.3,2143.7,3.2078]
[1741411356389,1.55338,2144.3,2143.9,0.93301]
[1741411356590,0.93297,2144.1,2143.9,0.21]
[1741411356783,1.31087001,2144.1,2143.9,0.21]
[1741411357290,0.37790001,2144.1,2143.9,1.14302]
[1741411357590,0.93992643,2144.2,2143.9,1.14302]
[1741411358292,1.31531083,2144.2,2143.9,1.14302]
[1741411359499,0.38238083,2144.2,2144.0,0.93298]
[1741411359794,0.38238083,2144.2,2144.0,0.12]
[1741411359998,1.31530083,2144.2,2144.0,0.12]
[1741411360299,1.54426,2144.1,2144.0,0.12]
[1741411360695,0.38238083,2144.2,2144.0,0.12]
[1741411360992,0.38238083,2144.2,2144.0,1.05297]
[1741411361194,0.38238083,2144.2,2144.1,0.6167]
[1741411361395,1.31529083,2144.2,2144.1,0.6367]
[1741411362197,1.31529083,2144.2,2144.1,0.02]
[1741411363489,4.52309083,2144.2,2144.1,0.02]
[1741411363688,0.93303,2144.0,2143.7,4.1409]
[1741411363893,0.6686,2143.9,2143.8,0.93308]
[1741411364192,0.6686,2143.9,2143.8,0.23]
[1741411364397,1.60164,2143.9,2143.8,0.23]
[1741411365692,0.6686,2143.9,2143.8,1.16309]
[1741411366093,0.6321,2144.1,2143.9,0.93304]
[1741411366094,1.56507,2144.1,2143.9,0.93304]
[1741411366299,3.59018083,2144.2,2144.0,0.6538]
[1741411366499,4.52311083,2144.2,2144.0,1.3091]
[1741411366795,4.52311083,2144.2,2144.0,2.2421]
[1741411366995,0.38238083,2144.2,2144.0,2.24208]
[1741411367389,1.31529083,2144.2,2144.0,1.3091]
[1741411367699,0.93296,2144.1,2144.0,1.3091]
[1741411367892,1.54806,2144.1,2144.0,0.05]
[1741411369399,0.93296,2144.1,2144.0,0.05]
[1741411369699,1.55486,2144.1,2144.0,0.05]
[1741411370003,1.31531083,2144.2,2144.0,0.05]
[1741411370498,0.38238083,2144.2,2144.1,1.55726]
[1741411370697,0.38238083,2144.2,2144.1,1.60726]
[1741411370899,0.38238083,2144.2,2144.1,0.6743]
[1741411371505,0.00699643,2144.2,2144.1,0.6743]
[1741411372605,0.93990643,2144.2,2144.1,0.6743]
[1741411372801,0.00699643,2144.2,2144.1,0.6743]
[1741411373003,0.00699643,2144.2,2144.1,1.3287]
[1741411373605,0.93990643,2144.2,2144.1,1.3287]
[1741411374104,0.00699643,2144.2,2144.1,1.3287]
[1741411374605,0.93990643,2144.2,2144.1,0.6743]
[1741411374804,0.93990643,2144.2,2144.1,0.05]
[1741411378201,0.00699643,2144.2,2144.1,0.05]
[1741411378702,0.93990643,2144.2,2144.1,0.05]
[1741411385506,0.93990643,2144.2,2144.1,0.98296]
[1741411385507,0.00699643,2144.2,2144.1,0.98296]
[1741411385702,0.00699643,2144.2,2144.1,0.05]
[1741411385908,0.93990643,2144.2,2144.1,0.05]
[1741411387108,0.00699643,2144.2,2144.1,0.05]
[1741411387710,0.00699643,2144.2,2144.1,0.6879]
[1741411389613,3.2078,2144.8,2144.1,7.8957]
[1741411389909,2.924,2145.1,2144.2,0.6556]
[1741411389910,5.52617667,2145.1,2144.2,0.6556]
[1741411390109,0.93267,2144.8,2144.2,1.0856]
[1741411390308,5.52617667,2145.1,2144.2,1.0856]
[1741411390309,1.9499,2144.7,2144.5,0.93276]
[1741411390514,1.9499,2144.7,2144.5,1.12276]
[1741411391014,0.6365,2144.7,2144.6,0.93274]
[1741411391321,0.00699643,2144.8,2144.7,0.93269]
[1741411391511,0.00699643,2144.8,2144.7,0.97269]
[1741411392118,0.00699643,2144.8,2144.7,0.04]
[1741411392713,4.14744643,2144.8,2144.7,0.04]
[1741411393510,0.00699643,2144.8,2144.7,0.04]
[1741411393714,0.00699643,2144.8,2144.7,0.97269]
[1741411396113,0.00699643,2144.8,2144.7,4.18049]
[1741411405223,0.00699643,2144.8,2144.7,0.97269]
[1741411408926,0.00699643,2144.8,2144.7,0.04]
[1741411409334,0.93964643,2144.8,2144.7,0.04]
[1741411409532,3.21479643,2144.8,2144.4,4.14758643]
[1741411409733,3.21479643,2144.8,2144.4,3.41479643]
[1741411409734,0.93278,2144.5,2144.4,3.41479643]
[1741411409933,0.93275,2144.6,2144.4,4.34760643]
[1741411410232,1.2716,2144.5,2144.4,4.34760643]
[1741411410433,1.8902,2144.5,2144.4,4.34760643]
[1741411410831,1.8902,2144.5,2144.4,3.41479643]
[1741411411030,2.82298,2144.5,2144.4,3.41479643]
[1741411412130,1.8902,2144.5,2144.4,4.34761643]
[1741411412634,1.8902,2144.5,2144.4,3.41479643]
[1741411414033,2.82298,2144.5,2144.4,0.20699643]
[1741411417446,1.8902,2144.5,2144.4,0.20699643]
[1741411417637,1.8902,2144.5,2144.4,1.13981643]
[1741411417943,1.8902,2144.5,2144.4,0.20699643]
[1741411418543,1.8902,2144.5,2144.4,0.81309643]
[1741411421450,1.8902,2144.5,2144.4,1.74591643]
[1741411421637,1.8902,2144.5,2144.4,0.81309643]
[1741411421839,0.6677,2144.5,2144.4,1.74591643]
[1741411422448,0.6677,2144.5,2144.4,0.81309643]
[1741411422948,0.6677,2144.5,2144.4,1.74591643]
[1741411423748,0.6677,2144.5,2144.4,0.81309643]
[1741411424049,0.6677,2144.5,2144.4,1.74591643]
[1741411425050,0.6677,2144.5,2144.4,0.81309643]
[1741411426450,0.6677,2144.5,2144.4,0.20699643]
[1741411426950,1.60048,2144.5,2144.4,0.20699643]
[1741411429547,0.6677,2144.5,2144.4,1.13981643]
[1741411429753,0.6677,2144.5,2144.4,0.20699643]
[1741411429952,0.6677,2144.5,2144.4,1.13981643]
[1741411430654,0.6677,2144.5,2144.4,0.20699643]
[1741411431150,0.6677,2144.5,2144.4,1.13981643]
[1741411431352,2.22211,2144.7,2144.4,1.13981643]
[1741411431353,1.2894,2144.7,2144.5,0.93277]
[1741411431542,0.6614,2144.7,2144.5,1.66297]
[1741411433856,0.6614,2144.7,2144.5,0.07]
[1741411434154,1.57324,2144.6,2144.5,0.07]
[1741411434355,0.6405,2144.6,2144.5,0.07]
[1741411434658,0.6405,2144.6,2144.5,1.61728]
[1741411434858,0.6405,2144.6,2144.5,0.6845]
[1741411435357,0.6405,2144.6,2144.5,1.61728]
[1741411435748,0.6405,2144.6,2144.5,0.6845]
[1741411435948,1.57324,2144.6,2144.5,0.6845]
[1741411437155,0.6405,2144.6,2144.5,0.6845]
[1741411438862,1.57324,2144.6,2144.5,0.6845]
[1741411440660,1.57324,2144.6,2144.5,0.07]
[1741411442163,2.18204,2144.6,2144.5,0.07]
[1741411448270,1.2493,2144.6,2144.5,1.00278]
[1741411448470,1.2493,2144.6,2144.5,0.07]
[1741411448671,2.18204,2144.6,2144.5,0.07]
[1741411450666,1.2493,2144.6,2144.5,0.07]
[1741411451974,2.18204,2144.6,2144.5,0.07]
[1741411452269,1.2493,2144.6,2144.5,0.07]
[1741411452469,2.18204,2144.6,2144.5,0.07]
[1741411453466,0.6614,2144.7,2144.5,0.07]
[1741411453775,0.6614,2144.7,2144.6,0.93274]
[1741411453974,0.6614,2144.7,2144.6,1.58724]
[1741411454864,0.00699643,2144.8,2144.7,0.93269]
[1741411455075,0.00699643,2144.8,2144.7,1.05269]
[1741411455875,0.00699643,2144.8,2144.7,0.12]
[1741411456068,0.93964643,2144.8,2144.7,0.12]
[1741411456877,4.14744643,2144.8,2144.7,0.12]
[1741411466278,0.93964643,2144.8,2144.7,0.12]
[1741411467877,0.00699643,2144.8,2144.7,0.12]
[1741411469684,0.00699643,2144.8,2144.7,1.05269]
[1741411469885,0.6117,2145.2,2144.7,0.7762]
[1741411470076,0.6117,2145.2,2145.0,0.93253]
[1741411470278,0.6117,2145.2,2145.1,0.6589]
[1741411470478,0.6688,2145.3,2145.1,1.64142]
[1741411471181,0.6688,2145.3,2145.1,1.64139]
[1741411471582,0.6688,2145.3,2145.1,0.7089]
[1741411472383,0.6688,2145.3,2145.1,2.2887]
[1741411472580,0.64379643,2145.4,2145.1,1.3562]
[1741411472797,0.00699643,2145.4,2145.2,0.6562]
[1741411473084,0.93243,2145.3,2145.2,0.12]
[1741411473285,1.54223,2145.3,2145.2,0.12]
[1741411473486,2.17903,2145.3,2145.2,0.12]
[1741411474993,3.21479643,2145.4,2145.2,1.05248]
[1741411475181,3.21479643,2145.4,2145.3,0.6035]
[1741411475383,0.00699643,2145.4,2145.3,1.59593]
[1741411475786,0.00699643,2145.4,2145.3,0.6635]
[1741411476691,0.00699643,2145.4,2145.3,1.59593]
[1741411477987,3.2078,2145.7,2145.3,0.6635]
[1741411478290,3.2078,2145.7,2145.5,0.93233]
[1741411478592,3.2078,2145.7,2145.5,1.07233]
[1741411478792,3.2078,2145.7,2145.6,0.6515]
[1741411478982,3.2078,2145.7,2145.6,0.7015]
[1741411479691,0.00699643,2145.9,2145.6,1.6338]
[1741411480082,0.93916643,2145.9,2145.6,1.6338]
[1741411480691,0.00699643,2145.9,2145.6,0.7015]
[1741411480893,0.00699643,2145.9,2145.8,0.93222]
[1741411481082,0.00699643,2145.9,2145.8,0.96222]
[1741411481290,0.00699643,2145.9,2145.8,1.58862]
[1741411481992,3.2078,2146.4,2145.8,4.6564]
[1741411482194,1.9427,2146.6,2146.3,0.93197]
[1741411482388,2.87459,2146.6,2146.2,0.93203]
[1741411482589,2.87459,2146.6,2146.2,1.01203]
[1741411482795,2.87459,2146.6,2146.2,1.64753]
[1741411482987,2.87921554,2146.6,2146.2,1.64753]
[1741411483688,0.93193,2146.5,2146.2,0.7155]
[1741411484395,3.25255516,2146.6,2146.2,1.64754]
[1741411485092,0.93195,2146.5,2146.2,0.7155]
[1741411485296,0.93191,2146.5,2146.2,0.7155]
[1741411485489,3.25254516,2146.6,2146.2,1.64752]
[1741411485694,2.32065516,2146.6,2146.2,0.7155]
[1741411485896,0.93192,2146.5,2146.2,0.7155]
[1741411486899,2.32065516,2146.6,2146.2,0.7155]
[1741411487098,0.93198,2146.4,2146.2,0.7155]
[1741411487294,0.93194,2146.5,2146.2,1.64754]
[1741411487486,0.93194,2146.5,2146.2,0.7155]
[1741411487893,2.32065516,2146.6,2146.2,1.64751]
[1741411487894,3.25254516,2146.6,2146.2,1.64751]
[1741411488101,3.25254516,2146.6,2146.2,0.7155]
[1741411488300,1.94732554,2146.6,2146.5,0.93191]
[1741411488493,0.00462554,2146.6,2146.5,0.98191]
[1741411489204,0.00462554,2146.6,2146.5,0.05]
[1741411489599,0.00462554,2146.6,2146.5,0.665]
[1741411490704,0.93649554,2146.6,2146.5,0.05]
[1741411490902,0.93652554,2146.6,2146.2,2.18251]
[1741411491206,0.93652554,2146.6,2146.3,0.93197]
[1741411491207,0.6029,2146.5,2146.3,0.93197]
[1741411491507,0.6029,2146.5,2146.3,1.81]
[1741411491697,1.53483,2146.5,2146.3,1.81]
[1741411491897,1.2502,2146.4,2146.3,1.81]
[1741411493406,2.18216,2146.4,2146.3,1.81]
[1741411493705,1.2502,2146.4,2146.0,3.8175]
[1741411493904,0.93206,2146.2,2146.0,0.8497]
[1741411494611,0.93209,2146.1,2146.0,0.8497]
[1741411494902,0.93209,2146.1,2146.0,0.24]
[1741411508904,3.2078,2146.3,2146.0,0.24]
[1741411509103,0.93203,2146.3,2146.0,1.17212]
[1741411509303,0.93203,2146.3,2146.1,0.6117]
[1741411509504,0.932,2146.3,2146.1,0.6617]
[1741411509907,0.932,2146.3,2146.2,0.6589]
[1741411510213,1.53999,2146.4,2146.2,0.7689]